bitfinex/quotes_BTCUSD_20251114
["timestamp","ask_amount","ask_price","bid_price","bid_amount"]
[1763124912901,0.00045321,95435.0,95434.0,2.20956891]
[1763124913115,0.00045321,95435.0,95434.0,2.57598765]
[1763124913546,0.00045321,95435.0,95434.0,2.36641874]
[1763124914302,0.00045321,95435.0,95434.0,2.36941874]
[1763124914731,0.00045321,95435.0,95434.0,2.57898765]
[1763124915652,0.10904293,95500.0,95478.0,0.20947203]
[1763124915885,0.01733324,95499.0,95459.0,0.36641874]
[1763124916127,0.01733324,95499.0,95463.0,0.36641874]
[1763124916351,0.01733324,95499.0,95471.0,2.0]
[1763124916578,0.01733324,95499.0,95466.0,0.04341874]
[1763124916825,0.02617828,95499.0,95459.0,0.04341874]
[1763124917039,0.09904293,95485.0,95462.0,2.0]
[1763124917242,0.09904293,95485.0,95446.0,2.0]
[1763124917499,0.10917897,95500.0,95440.0,0.58019314]
[1763124917500,0.02618239,95484.0,95452.0,0.09904293]
[1763124917638,0.10917897,95500.0,95454.0,0.36641874]
[1763124917639,0.34917828,95499.0,95454.0,0.36641874]
[1763124917841,0.09904293,95485.0,95455.0,2.0]
[1763124918063,0.01253737,95484.0,95455.0,2.0]
[1763124918277,0.02618267,95483.0,95438.0,2.0]
[1763124918481,0.01391024,95483.0,95440.0,2.0]
[1763124918723,0.01391024,95483.0,95443.0,0.04341874]
[1763124918884,0.01391024,95483.0,95444.0,2.0]
[1763124919084,0.02618267,95483.0,95447.0,0.20953834]
[1763124919416,0.02618267,95483.0,95444.0,0.20954691]
[1763124919417,0.09904293,95469.0,95445.0,0.04341874]
[1763124919617,0.02032874,95468.0,95436.0,2.0]
[1763124919970,0.09904293,95469.0,95430.0,0.59067202]
[1763124919971,0.01944674,95467.0,95432.0,0.323]
[1763124920163,0.02618733,95466.0,95438.0,2.0]
[1763124920342,0.02618267,95483.0,95441.0,2.0]
[1763124920547,0.02618267,95483.0,95433.0,2.0]
[1763124920548,0.09904293,95468.0,95433.0,2.0]
[1763124920753,0.02618705,95467.0,95437.0,2.0]
[1763124920903,0.02618705,95467.0,95439.0,2.20955574]
[1763124921178,0.02618349,95480.0,95437.0,2.0]
[1763124921379,0.00013599,95483.0,95437.0,2.0]
[1763124921380,0.09904293,95467.0,95437.0,1.98068]
[1763124921702,0.02618733,95466.0,95437.0,2.0]
[1763124921900,0.02618733,95466.0,95411.0,2.0]
[1763124921901,0.09904293,95452.0,95411.0,2.0]
[1763124922243,0.09904293,95452.0,95438.0,0.001]
[1763124923020,0.09917885,95452.0,95425.0,0.20958837]
[1763124923221,0.09917885,95452.0,95410.0,0.59067422]
[1763124923222,0.09917885,95452.0,95411.0,0.04341874]
[1763124923429,0.09917885,95452.0,95437.0,0.001]
[1763124923763,0.323,95451.0,95408.0,2.0]
[1763124924045,0.323,95451.0,95407.0,0.323]
[1763124924046,0.323,95451.0,95411.0,2.0]
[1763124924199,0.323,95451.0,95412.0,2.20961723]
[1763124924397,0.323,95451.0,95421.0,2.20959746]
[1763124924708,0.10017885,95452.0,95429.0,0.323]
[1763124924920,0.09904293,95451.0,95431.0,2.0]
[1763124925132,0.12523437,95451.0,95411.0,0.04341874]
[1763124925330,0.09904293,95436.0,95410.0,2.0]
[1763124925549,0.09904293,95436.0,95404.0,0.323]
[1763124925791,0.09904293,95436.0,95409.0,2.0]
[1763124926123,0.09884034,95436.0,95409.0,2.0]
[1763124926307,0.09884034,95436.0,95409.0,0.20962165]
[1763124926507,0.09884034,95436.0,95411.0,2.0]
[1763124926673,0.09884034,95436.0,95407.0,2.0]
[1763124926876,0.09984034,95436.0,95398.0,0.04341874]
[1763124927079,0.09984034,95436.0,95401.0,2.0]
[1763124927305,0.09904293,95421.0,95390.0,2.0]
[1763124927532,0.09904293,95421.0,95391.0,2.0]
[1763124927732,0.09904293,95421.0,95388.0,0.323]
[1763124927944,0.09904293,95421.0,95392.0,0.323]
[1763124928157,0.09904293,95421.0,95393.0,2.0]
[1763124928359,0.09917877,95421.0,95393.0,2.0]
[1763124928793,0.09917877,95421.0,95392.0,0.323]
[1763124929025,0.09917877,95421.0,95388.0,0.36641874]
[1763124929224,0.09917877,95421.0,95392.0,0.001]
[1763124929446,0.09917877,95421.0,95390.0,0.323]
[1763124929648,0.09917877,95421.0,95379.0,0.24700505]
[1763124929649,0.09904293,95406.0,95382.0,0.02798651]
[1763124929854,0.09917877,95421.0,95393.0,0.001]
[1763124930054,0.09917877,95421.0,95386.0,2.0]
[1763124930250,0.09917877,95421.0,95384.0,0.323]
[1763124930490,0.09917877,95421.0,95385.0,2.0]
[1763124930690,0.09904293,95406.0,95377.0,0.02798651]
[1763124930891,0.09904293,95406.0,95360.0,0.58019314]
[1763124930892,0.09904293,95406.0,95374.0,2.0]
[1763124931239,0.09904293,95406.0,95374.0,0.02798651]
[1763124931451,0.09904293,95406.0,95371.0,2.0]
[1763124931668,0.09904293,95406.0,95392.0,0.001]
[1763124932097,0.09904293,95406.0,95382.0,0.001]
[1763124932307,0.09904293,95405.0,95382.0,0.01795773]
[1763124932547,0.09904293,95405.0,95376.0,0.04341874]
[1763124932798,0.09904293,95405.0,95378.0,2.0]
[1763124933019,0.09904293,95405.0,95372.0,2.0]
[1763124933228,0.09904293,95405.0,95374.0,2.0]
[1763124933439,0.09904293,95405.0,95361.0,0.14246167]
[1763124933440,0.09904293,95405.0,95368.0,0.02798651]
[1763124933639,0.09904293,95405.0,95361.0,0.09904293]
[1763124933640,0.09904293,95390.0,95367.0,0.323]
[1763124933904,0.09904293,95390.0,95365.0,0.02798651]
[1763124934123,0.09904293,95390.0,95350.0,0.0189113]
[1763124934124,0.09904293,95375.0,95357.0,0.02798651]
[1763124934341,0.09904293,95375.0,95347.0,0.00798651]
[1763124934575,0.09904293,95375.0,95348.0,0.01626373]
[1763124934817,0.09904293,95375.0,95348.0,0.00045321]
[1763124935027,0.34221744,95374.0,95348.0,0.00045321]
[1763124935213,0.01921744,95373.0,95348.0,0.00045321]
[1763124935420,0.01921744,95372.0,95348.0,0.00045321]
[1763124935638,0.01921744,95371.0,95348.0,0.00045321]
[1763124935845,0.02921743,95370.0,95348.0,0.00045321]
[1763124936047,0.04341874,95368.0,95348.0,0.00045321]
[1763124936251,0.04341874,95366.0,95348.0,0.00045321]
[1763124936519,0.01921744,95365.0,95348.0,0.00045321]
[1763124936725,0.01921744,95364.0,95348.0,0.00045321]
[1763124936943,0.01921744,95363.0,95348.0,0.00045321]
[1763124937155,0.002,95371.0,95348.0,0.00045321]
[1763124937358,0.0191269,95370.0,95348.0,0.00045321]
[1763124937569,0.002,95371.0,95348.0,0.00045321]
[1763124937570,0.0191269,95369.0,95348.0,0.00045321]
[1763124937772,0.0191269,95368.0,95348.0,0.00045321]
[1763124937980,0.0191269,95367.0,95348.0,0.00045321]
[1763124938191,0.323,95374.0,95348.0,0.00045321]
[1763124938395,0.09904293,95356.0,95348.0,0.00045321]
[1763124939831,0.323,95355.0,95348.0,0.00045321]
[1763124941286,0.09904293,95356.0,95348.0,0.00045321]
[1763124941513,0.323,95355.0,95348.0,0.00045321]
[1763124941728,0.324,95355.0,95314.0,0.323]
[1763124941940,0.324,95355.0,95318.0,2.0]
[1763124942116,0.09904293,95341.0,95314.0,0.00045341]
[1763124942317,0.09904293,95341.0,95315.0,2.0]
[1763124942516,0.09904293,95341.0,95314.0,0.00045341]
[1763124942721,0.09904293,95325.0,95314.0,0.00045341]
[1763124943086,0.323,95340.0,95314.0,0.00045341]
[1763124943522,0.10104293,95341.0,95315.0,2.0]
[1763124943718,0.002,95341.0,95317.0,2.0]
[1763124944016,0.09904293,95339.0,95315.0,2.0]
[1763124944356,0.09904293,95339.0,95317.0,2.0]
[1763124944567,0.09904293,95339.0,95319.0,2.0]
[1763124944770,0.09904293,95339.0,95320.0,0.01498649]
[1763124944994,0.02621891,95351.0,95320.0,0.58019314]
[1763124945202,0.001,95325.0,95322.0,2.0]
[1763124945403,0.001,95325.0,95315.0,2.0]
[1763124945666,0.001,95325.0,95314.0,0.00045341]
[1763124945874,0.01142624,95354.0,95314.0,0.00045341]
[1763124946004,0.09904293,95338.0,95314.0,0.00045341]
[1763124946209,0.09904293,95338.0,95315.0,2.0]
[1763124946531,0.09904293,95338.0,95317.0,2.0]
[1763124946714,0.09904293,95338.0,95318.0,0.01699208]
[1763124946915,0.09904293,95338.0,95314.0,0.00045341]
[1763124947121,0.01635524,95337.0,95315.0,2.0]
[1763124947534,0.01635524,95337.0,95322.0,0.001]
[1763124947721,0.01694849,95336.0,95315.0,2.0]
[1763124948487,0.01450799,95335.0,95316.0,0.01699318]
[1763124948696,0.02608649,95334.0,95316.0,0.323]
[1763124948901,0.01792987,95333.0,95316.0,0.323]
[1763124949099,0.02400624,95337.0,95316.0,0.323]
[1763124949306,0.02300624,95337.0,95315.0,2.0]
[1763124949745,0.001,95335.0,95315.0,2.0]
[1763124949869,0.02722331,95335.0,95315.0,2.0]
[1763124950277,0.02722331,95335.0,95314.0,0.00045341]
[1763124950821,0.02622331,95335.0,95314.0,0.00045341]
[1763124950965,0.02622359,95334.0,95314.0,0.00045341]
[1763124951627,0.02622359,95334.0,95315.0,2.0]
[1763124951848,0.02622359,95334.0,95317.0,2.0]
[1763124952027,0.02622386,95333.0,95315.0,2.0]
[1763124952240,0.02622276,95337.0,95317.0,2.0]
[1763124952499,0.02622304,95336.0,95318.0,0.01699225]
[1763124952623,0.02622304,95336.0,95315.0,2.0]
[1763124952867,0.09904293,95338.0,95314.0,0.01744567]
[1763124952868,0.01547324,95337.0,95317.0,2.0]
[1763124953113,0.02622304,95336.0,95315.0,2.0]
[1763124953691,0.02622304,95336.0,95314.0,0.00045341]
[1763124954073,0.02622304,95336.0,95315.0,2.0]
[1763124954453,0.09904293,95335.0,95314.0,0.00045341]
[1763124954606,0.01298474,95334.0,95314.0,0.00045341]
[1763124954821,0.02622359,95334.0,95314.0,0.00045341]
[1763124954997,0.02622386,95333.0,95314.0,0.00045341]
[1763124955976,0.02622414,95332.0,95314.0,0.00045341]
[1763124956587,0.02622414,95332.0,95302.0,2.0]
[1763124956823,0.02667708,95332.0,95304.0,2.0]
[1763124957097,0.02667708,95332.0,95311.0,2.0]
[1763124957305,0.00045294,95332.0,95320.0,0.58019314]
[1763124957511,0.00045294,95332.0,95318.0,0.20982372]
[1763124957717,0.00045294,95332.0,95319.0,2.0]
[1763124957919,0.00145294,95332.0,95319.0,2.0]
[1763124958123,0.00145294,95332.0,95314.0,2.0]
[1763124958326,0.00045294,95332.0,95315.0,0.20982983]
[1763124958547,0.00045294,95332.0,95319.0,2.0]
[1763124958966,0.00045294,95332.0,95311.0,2.0]
[1763124959227,0.00045294,95332.0,95306.0,0.323]
[1763124959442,0.00045294,95332.0,95310.0,0.58019314]
[1763124959650,0.00045294,95332.0,95321.0,0.20981519]
[1763124959865,0.00045294,95332.0,95320.0,0.323]
[1763124960480,0.00045294,95332.0,95331.0,2.53279534]
[1763124960879,0.00045294,95332.0,95331.0,2.57621408]
[1763124961054,0.00045294,95332.0,95310.0,0.01583385]
[1763124961253,0.09904293,95330.0,95302.0,0.323]
[1763124961480,0.02622496,95329.0,95300.0,0.01630332]
[1763124961903,0.02622496,95329.0,95299.0,0.323]
[1763124962107,0.02622496,95329.0,95302.0,2.0]
[1763124962245,0.01925275,95328.0,95305.0,0.323]
[1763124962444,0.02622551,95327.0,95306.0,2.0]
[1763124962813,0.00045294,95332.0,95330.0,0.323]
[1763124962945,0.00045294,95332.0,95331.0,2.323]
[1763124963145,0.00045294,95332.0,95331.0,2.36641874]
[1763124964168,0.00045294,95332.0,95331.0,2.324]
[1763124964373,0.00045294,95332.0,95331.0,0.002]
[1763124964573,0.00045294,95332.0,95331.0,0.001]
[1763124964779,0.00045294,95332.0,95331.0,0.002]
[1763124964981,0.00045294,95332.0,95331.0,0.001]
[1763124965180,0.00045294,95332.0,95311.0,2.0]
[1763124965430,0.01932391,95331.0,95310.0,0.016164]
[1763124965714,0.09904293,95330.0,95302.0,0.323]
[1763124965914,0.01932391,95329.0,95320.0,0.58019314]
[1763124966091,0.0193298,95328.0,95311.0,2.0]
[1763124966414,0.00045294,95332.0,95331.0,0.001]
[1763124966624,0.01978897,95332.0,95331.0,0.002]
[1763124966881,0.01978897,95332.0,95331.0,0.001]
[1763124967046,0.01978897,95332.0,95312.0,0.323]
[1763124967231,0.09904293,95330.0,95312.0,0.323]
[1763124967431,0.04556099,95329.0,95311.0,0.323]
[1763124967772,0.01933603,95328.0,95311.0,0.323]
[1763124968005,0.04555955,95327.0,95311.0,0.323]
[1763124968212,0.01933404,95326.0,95311.0,0.323]
[1763124968394,0.02381212,95325.0,95311.0,0.323]
[1763124968602,0.00145294,95332.0,95311.0,0.323]
[1763124968953,0.00145294,95332.0,95301.0,0.09904293]
[1763124968954,0.01932776,95331.0,95302.0,2.0]
[1763124969158,0.14459538,95330.0,95301.0,2.0]
[1763124969364,0.14459538,95330.0,95300.0,0.6004473]
[1763124969365,0.01932776,95329.0,95291.0,0.01073462]
[1763124969586,0.03643301,95328.0,95292.0,2.0]
[1763124969804,0.03643301,95328.0,95290.0,0.0004]
[1763124969805,0.09904293,95315.0,95290.0,0.0004]
[1763124970014,0.01932776,95314.0,95290.0,0.0004]
[1763124970226,0.01932776,95313.0,95290.0,0.0004]
[1763124970440,0.01932776,95312.0,95290.0,0.0004]
[1763124970648,0.01932776,95311.0,95301.0,2.0]
[1763124970854,0.02169432,95325.0,95301.0,2.0]
[1763124971058,0.02929945,95324.0,95301.0,2.0]
[1763124971262,0.0315802,95323.0,95293.0,0.323]
[1763124971474,0.01931546,95322.0,95294.0,2.0]
[1763124971677,0.09904293,95313.0,95290.0,0.0004]
[1763124971916,0.01931546,95312.0,95291.0,0.323]
[1763124972970,0.01931546,95312.0,95290.0,0.0004]
[1763124973170,0.001,95311.0,95290.0,0.0004]
[1763124973294,0.01931546,95310.0,95290.0,0.0004]
[1763124973491,0.01931546,95309.0,95290.0,0.0004]
[1763124973692,0.01931546,95308.0,95281.0,0.2974]
[1763124973895,0.01931546,95307.0,95283.0,2.0]
[1763124974118,0.01931546,95306.0,95282.0,2.0]
[1763124974334,0.01931546,95305.0,95282.0,2.0]
[1763124974535,0.09904293,95297.0,95281.0,0.2974]
[1763124974743,0.09904293,95297.0,95280.0,0.0004]
[1763124974946,0.01930026,95296.0,95280.0,0.0004]
[1763124975181,0.09904293,95297.0,95280.0,0.0004]
[1763124975362,0.01929337,95296.0,95280.0,0.0004]
[1763124975564,0.01929337,95295.0,95280.0,0.0004]
[1763124975746,0.01929337,95294.0,95280.0,0.00053633]
[1763124975943,0.01929337,95293.0,95280.0,0.00053633]
[1763124976142,0.01929337,95292.0,95280.0,0.00053633]
[1763124976344,0.09904293,95297.0,95280.0,0.00053633]
[1763124976549,0.11832669,95296.0,95280.0,0.00053633]
[1763124976745,0.01928376,95295.0,95280.0,0.00053633]
[1763124976972,0.01928376,95294.0,95280.0,0.00053633]
[1763124977173,0.01928376,95293.0,95280.0,0.00053633]
[1763124977379,0.01928376,95292.0,95280.0,0.00053633]
[1763124977526,0.09904293,95296.0,95280.0,0.00053633]
[1763124977527,0.01928376,95291.0,95280.0,0.00053633]
[1763124977725,0.01928376,95290.0,95280.0,0.00053633]
[1763124977937,0.01928376,95289.0,95280.0,0.00053633]
[1763124978159,0.01928376,95288.0,95280.0,0.00053633]
[1763124978359,0.01928376,95287.0,95280.0,0.00053633]
[1763124978569,0.01928376,95286.0,95280.0,0.00053633]
[1763124978948,0.01928376,95285.0,95280.0,0.00053633]
[1763124979100,0.01928376,95284.0,95280.0,0.00053633]
[1763124979285,0.01928376,95283.0,95280.0,0.00053633]
[1763124979480,0.01928376,95282.0,95280.0,0.00053633]
[1763124979683,0.01928376,95281.0,95280.0,0.00053633]
[1763124980822,0.02028376,95281.0,95280.0,0.00053633]
[1763124982614,0.02228376,95281.0,95280.0,0.00053633]
[1763124983652,0.09194067,95281.0,95280.0,0.00053633]
[1763124984055,0.07856902,95281.0,95280.0,0.00053633]
[1763124984275,0.07849772,95281.0,95280.0,0.00053633]
[1763124984628,0.41486937,95281.0,95280.0,0.00053633]
[1763124984865,0.50979257,95281.0,95280.0,0.00053633]
[1763124985260,0.50779257,95281.0,95280.0,0.00053633]
[1763124985584,0.50979257,95281.0,95280.0,0.00053633]
[1763124985988,0.51279257,95281.0,95280.0,0.00053633]
[1763124986544,0.49067413,95281.0,95280.0,0.00053633]
[1763124986746,0.51276946,95281.0,95280.0,0.00053633]
[1763124986949,0.50976946,95281.0,95280.0,0.00053633]
[1763124987159,0.04341874,95269.0,95230.0,0.0004]
[1763124987375,0.09904293,95231.0,95230.0,0.00053646]
[1763124988172,0.09904293,95231.0,95191.0,0.323]
[1763124988367,0.09904293,95212.0,95192.0,2.0]
[1763124988614,0.09904293,95212.0,95191.0,0.00045524]
[1763124988823,0.09904293,95231.0,95200.0,0.34749876]
[1763124989024,0.09904293,95214.0,95200.0,0.34749876]
[1763124989390,0.09904293,95214.0,95191.0,0.00045524]
[1763124989780,0.002,95212.0,95191.0,0.00045524]
[1763124989994,0.001,95212.0,95191.0,0.00045524]
[1763124990454,0.001,95214.0,95201.0,0.323]
[1763124990703,0.001,95214.0,95202.0,2.0]
[1763124991091,0.09904293,95229.0,95202.0,2.0]
[1763124991291,0.09904293,95229.0,95210.0,0.34749876]
[1763124991647,0.001,95214.0,95210.0,0.34749876]
[1763124992033,0.001,95214.0,95205.0,2.0]
[1763124992163,0.09904293,95229.0,95205.0,2.0]
[1763124992377,0.10004293,95229.0,95210.0,0.34749876]
[1763124992566,0.001,95212.0,95196.0,0.323]
[1763124992774,0.10004293,95229.0,95202.0,0.34749876]
[1763124992979,0.09904293,95214.0,95200.0,0.34749876]
[1763124993195,0.09904293,95214.0,95205.0,0.001]
[1763124993533,0.09904293,95214.0,95191.0,0.32345524]
[1763124993728,0.09904293,95214.0,95191.0,0.00045524]
[1763124993929,0.09904293,95214.0,95196.0,0.001]
[1763124994131,0.09904293,95214.0,95191.0,0.00045524]
[1763124995345,0.09904293,95214.0,95190.0,0.34749876]
[1763124995547,0.0994952,95214.0,95190.0,0.34749876]
[1763124996430,0.09904293,95198.0,95190.0,0.34749876]
[1763124996627,0.0994952,95214.0,95190.0,0.34749876]
[1763124997089,0.0994952,95214.0,95200.0,0.34749876]
[1763124997496,0.00045227,95214.0,95201.0,2.0]
[1763124998056,0.00045227,95214.0,95205.0,2.0]
[1763124998536,0.00045227,95214.0,95206.0,0.42204293]
[1763124998695,0.00045227,95214.0,95213.0,2.323]
[1763124998903,0.00045227,95214.0,95213.0,2.36641874]
[1763124999927,0.00045227,95214.0,95213.0,2.36741874]
[1763125000228,0.00045227,95214.0,95213.0,2.36641874]
[1763125000603,0.00045227,95214.0,95213.0,2.36841874]
[1763125001990,0.00045227,95214.0,95213.0,2.36641874]
[1763125002368,0.00045227,95214.0,95213.0,2.37041874]
[1763125002692,0.00045227,95214.0,95213.0,2.36641874]
[1763125002893,0.00045227,95214.0,95213.0,2.36841874]
[1763125003130,0.00045227,95214.0,95213.0,2.37041874]
[1763125003342,0.00045227,95214.0,95213.0,2.36841874]
[1763125003711,0.00045227,95214.0,95213.0,2.37041874]
[1763125003917,0.00045227,95214.0,95213.0,2.36841874]
[1763125004522,0.00045227,95214.0,95213.0,2.36641874]
[1763125004727,0.00045227,95214.0,95213.0,2.36841874]
[1763125005332,0.00045227,95214.0,95213.0,2.36941874]
[1763125005562,0.12528138,95280.0,95243.0,0.36641874]
[1763125005862,0.0192501,95279.0,95261.0,2.0]
[1763125006036,0.0192501,95279.0,95244.0,0.09904293]
[1763125006037,0.04056022,95278.0,95250.0,0.34749876]
[1763125006420,0.04548938,95277.0,95250.0,0.34749876]
[1763125006654,0.0192501,95276.0,95245.0,0.323]
[1763125006851,0.02623983,95275.0,95250.0,0.34749876]
[1763125007069,0.0192501,95274.0,95250.0,0.34749876]
[1763125007279,0.02350762,95273.0,95250.0,0.34749876]
[1763125007498,0.04300597,95272.0,95250.0,0.34749876]
[1763125007716,0.04300597,95272.0,95246.0,0.01042458]
[1763125007717,0.09904293,95265.0,95246.0,0.01042458]
[1763125007934,0.01576574,95264.0,95250.0,0.34749876]
[1763125008135,0.01602073,95278.0,95250.0,0.34749876]
[1763125008355,0.01927003,95277.0,95250.0,0.34749876]
[1763125008558,0.04550958,95276.0,95260.0,0.34749876]
[1763125008686,0.01927003,95275.0,95260.0,0.34749876]
[1763125008889,0.0262401,95274.0,95260.0,0.34749876]
[1763125009108,0.02623432,95295.0,95261.0,2.323]
[1763125009302,0.04550736,95294.0,95270.0,0.34749876]
[1763125009629,0.01927276,95293.0,95270.0,0.34749876]
[1763125009843,0.02623515,95292.0,95271.0,2.0]
[1763125010047,0.001,95274.0,95270.0,0.35792334]
[1763125010260,0.001,95274.0,95270.0,0.01042458]
[1763125011562,0.0262346,95294.0,95264.0,0.34749876]
[1763125011789,0.09904293,95278.0,95264.0,0.34749876]
[1763125012032,0.02623928,95277.0,95257.0,0.323]
[1763125012293,0.02623928,95277.0,95260.0,0.34749876]
[1763125012549,0.01927179,95276.0,95255.0,0.01042458]
[1763125012789,0.001,95274.0,95255.0,0.01042458]
[1763125013042,0.02450312,95274.0,95255.0,0.01042458]
[1763125013319,0.09904293,95263.0,95243.0,0.00013646]
[1763125013566,0.01862849,95262.0,95243.0,0.00013646]
[1763125013805,0.02558887,95261.0,95243.0,0.00013646]
[1763125014069,0.35023928,95277.0,95243.0,0.00013646]
[1763125014292,0.09904293,95262.0,95243.0,0.00013646]
[1763125015212,0.09904293,95247.0,95243.0,0.00013646]
[1763125015726,0.34226469,95246.0,95243.0,0.00013646]
[1763125015985,0.01926469,95245.0,95243.0,0.00013646]
[1763125016440,0.01926469,95244.0,95243.0,0.00013646]
[1763125016665,0.01926469,95246.0,95243.0,0.00013646]
[1763125017695,0.01926469,95246.0,95212.0,2.0]
[1763125017878,0.09904293,95219.0,95212.0,0.00013657]
[1763125018301,0.323,95244.0,95212.0,0.00013657]
[1763125018515,0.09904293,95230.0,95212.0,0.00013657]
[1763125018775,0.01926603,95229.0,95212.0,0.00013657]
[1763125018943,0.01926603,95228.0,95212.0,0.00013657]
[1763125019148,0.09904293,95230.0,95212.0,0.00113657]
[1763125019351,0.01926837,95229.0,95212.0,0.00213657]
[1763125019553,0.01926837,95228.0,95212.0,0.00113657]
[1763125019802,0.09904293,95230.0,95212.0,0.00113657]
[1763125020004,0.01926831,95229.0,95212.0,0.00113657]
[1763125020214,0.01926831,95228.0,95219.0,0.34749876]
[1763125020365,0.09904293,95247.0,95219.0,0.34749876]
[1763125020568,0.09904293,95232.0,95212.0,0.01156115]
[1763125020887,0.09904293,95217.0,95212.0,0.00113657]
[1763125021091,0.323,95231.0,95212.0,0.00113657]
[1763125021249,0.01927306,95230.0,95220.0,0.34749876]
[1763125021452,0.323,95246.0,95220.0,0.34749876]
[1763125021688,0.04352265,95245.0,95220.0,0.34749876]
[1763125021880,0.01928023,95244.0,95212.0,0.00113657]
[1763125022085,0.01928023,95244.0,95213.0,2.0]
[1763125022321,0.024786,95243.0,95220.0,0.34749876]
[1763125022521,0.01928023,95242.0,95220.0,0.34749876]
[1763125022736,0.04552915,95242.0,95220.0,0.34749876]
[1763125022940,0.01928023,95241.0,95220.0,0.34749876]
[1763125023141,0.04552942,95241.0,95220.0,0.34749876]
[1763125023445,0.002,95244.0,95220.0,0.34749876]
[1763125023446,0.002,95244.0,95230.0,0.34749876]
[1763125023645,0.002,95244.0,95234.0,0.323]
[1763125023868,0.002,95244.0,95229.0,0.01042458]
[1763125024054,0.002,95244.0,95231.0,2.0]
[1763125024413,0.09904293,95278.0,95241.0,2.0]
[1763125024414,0.02623928,95277.0,95241.0,2.0]
[1763125024616,0.09904293,95278.0,95235.0,0.53300462]
[1763125024617,0.001,95242.0,95235.0,0.53300462]
[1763125024821,0.002,95242.0,95241.0,2.0]
[1763125025003,0.01449599,95275.0,95237.0,0.323]
[1763125025206,0.03627253,95274.0,95238.0,2.0]
[1763125025406,0.09904293,95263.0,95238.0,2.0]
[1763125025540,0.02068348,95262.0,95238.0,2.0]
[1763125025745,0.02068348,95262.0,95250.0,0.34749876]
[1763125026375,0.02068348,95262.0,95248.0,0.01042458]
[1763125026593,0.02068348,95262.0,95240.0,0.34749876]
[1763125026807,0.02624341,95262.0,95250.0,0.34749876]
[1763125026956,0.02823983,95275.0,95250.0,0.34749876]
[1763125027257,0.09904293,95263.0,95250.0,0.34749876]
[1763125027412,0.02100524,95262.0,95246.0,2.0]
[1763125027630,0.02467799,95261.0,95246.0,2.0]
[1763125028033,0.001,95262.0,95250.0,0.34749876]
[1763125028236,0.02196549,95275.0,95250.0,0.34749876]
[1763125028503,0.04101607,95274.0,95250.0,0.34749876]
[1763125028689,0.001,95262.0,95250.0,0.34749876]
[1763125028923,0.001,95261.0,95250.0,0.34749876]
[1763125029114,0.001,95261.0,95253.0,2.0]
[1763125029322,0.09904293,95295.0,95261.0,2.04341874]
[1763125029323,0.0262346,95294.0,95261.0,2.04341874]
[1763125029548,0.01935306,95293.0,95280.0,0.34749876]
[1763125029819,0.03483323,95292.0,95261.0,0.01042458]
[1763125029995,0.01935306,95291.0,95270.0,0.34749876]
[1763125030209,0.01348874,95290.0,95270.0,0.34749876]
[1763125030395,0.01659524,95289.0,95270.0,0.34749876]
[1763125030765,0.002,95275.0,95270.0,0.34749876]
[1763125030969,0.002,95275.0,95266.0,2.0]
[1763125031182,0.02623652,95287.0,95266.0,2.0]
[1763125031359,0.02623652,95287.0,95270.0,0.34749876]
[1763125031798,0.00013578,95289.0,95280.0,2.0]
[1763125032009,0.00013578,95289.0,95288.0,2.20989001]
[1763125032215,0.00013578,95289.0,95288.0,2.0]
[1763125032637,0.00013578,95289.0,95288.0,2.36641874]
[1763125032883,0.00013578,95289.0,95288.0,2.57630875]
[1763125033071,0.00013578,95289.0,95288.0,2.67535168]
[1763125034668,0.00013578,95289.0,95288.0,2.67735168]
[1763125034906,0.00013578,95289.0,95288.0,2.67935168]
[1763125035276,0.00013578,95289.0,95288.0,2.67535168]
[1763125035407,0.00013578,95289.0,95288.0,2.67735168]
[1763125035603,0.00013578,95289.0,95288.0,2.67935168]
[1763125036023,0.09904293,95375.0,95323.0,0.36641874]
[1763125036244,0.02621781,95355.0,95340.0,0.34749876]
[1763125036445,0.00045507,95356.0,95341.0,2.0]
[1763125036694,0.00045507,95356.0,95324.0,0.09904293]
[1763125036695,0.00045507,95356.0,95352.0,0.20974853]
[1763125036893,0.00045507,95356.0,95346.0,0.58139183]
[1763125037842,0.00345507,95356.0,95346.0,0.58139183]
[1763125038055,0.00145507,95356.0,95346.0,0.58139183]
[1763125038483,0.00045507,95356.0,95347.0,2.0]
[1763125038696,0.00145507,95356.0,95354.0,2.20974323]
[1763125038873,0.00145507,95356.0,95354.0,0.01042458]
[1763125039329,0.00145507,95356.0,95346.0,0.58139183]
[1763125039330,0.00145507,95356.0,95347.0,2.0]
[1763125039528,0.00145507,95356.0,95350.0,0.2097516]
[1763125039730,0.00145507,95356.0,95348.0,2.0]
[1763125039934,0.00045507,95356.0,95347.0,2.0]
[1763125040602,0.00045507,95356.0,95342.0,0.01042458]
[1763125041085,0.00145507,95356.0,95343.0,2.0]
[1763125041313,0.00145507,95356.0,95355.0,2.53274254]
[1763125041533,0.00045507,95356.0,95355.0,2.54316712]
[1763125041772,0.00045507,95356.0,95355.0,2.58658586]
[1763125041978,0.00145507,95356.0,95355.0,2.58658586]
[1763125042719,0.00145507,95356.0,95355.0,2.69417714]
[1763125042921,0.0002,95380.0,95361.0,0.04341874]
[1763125043175,0.00033648,95380.0,95379.0,2.67515143]
[1763125043375,0.00033648,95380.0,95379.0,2.68557601]
[1763125043728,0.00033648,95380.0,95379.0,2.76446757]
[1763125044337,0.02639721,95430.0,95380.0,0.04341874]
[1763125044545,0.0002,95430.0,95429.0,0.20957989]
[1763125044775,0.00033638,95430.0,95429.0,2.6167316]
[1763125045110,0.00033638,95430.0,95429.0,2.6428389]
[1763125045446,0.00033638,95430.0,95429.0,2.58642321]
[1763125045838,0.00033638,95430.0,95429.0,2.66686097]
[1763125046289,0.00033638,95430.0,95429.0,2.69716936]
[1763125046518,0.00033638,95430.0,95429.0,2.69296827]
[1763125046729,0.00033638,95430.0,95429.0,2.66686097]
[1763125046979,0.00033638,95430.0,95429.0,2.58842321]
[1763125047181,0.0011,95460.0,95429.0,2.58842321]
[1763125047433,0.0011,95460.0,95459.0,2.57593277]
[1763125047434,0.00155434,95460.0,95459.0,2.57593277]
[1763125047637,0.00155434,95460.0,95459.0,2.58635735]
[1763125048594,0.00155434,95460.0,95459.0,2.38728158]
[1763125048911,0.00155434,95460.0,95459.0,2.34386284]
[1763125049311,0.0002,95470.0,95469.0,2.57591082]
[1763125049511,0.00033625,95470.0,95469.0,2.5863354]